fUST/lending_fUST_20250827
["ID","MTS","AMOUNT","RATE_DAILY","PERIOD"]
[381541010,1756273536884,-10000.01,0.00025,2]
[381541011,1756273537055,-10000.01,0.00025,2]
[381541012,1756273537210,-10000.01,0.00025,2]
[381541013,1756273545430,-5000.0,0.0002475,3]
[381541014,1756273545489,-0.01,0.00024996,10]
[381541015,1756273545606,-2191.88,0.00024996,10]
[381541016,1756273545658,-5616.25,0.00025,2]
[381541017,1756273545775,-10000.01,0.00025,2]
[381541018,1756273546064,-10000.01,0.00025,2]
[381541019,1756273546155,-10000.01,0.00025,2]
[381541020,1756273546324,-10000.01,0.00025,2]
[381541021,1756273546468,-10000.01,0.00025,2]
[381541022,1756273552781,-10000.01,0.00025,2]
[381541023,1756273552968,-3431.11361739,0.00025,2]
[381541024,1756273553001,-696.0,0.00025005,2]
[381541025,1756273553032,-300.0,0.00025006,2]
[381541026,1756273560574,1145.78276522,0.00025006,2]
[381541027,1756273560598,3854.21723478,0.00025006,2]
[381541028,1756273561319,177.01210144,0.00024905,2]
[381541029,1756273562950,300.0,0.00025005,2]
[381541030,1756273563515,155.03639077,0.000249,2]
[381541032,1756273634887,3526.9329668,0.000199,2]
[381541033,1756273635504,-182.8660195,0.00021627,2]
[381541034,1756273637986,-197.37240435,0.00021627,2]
[381541035,1756273640284,-222.81793797,0.00021627,2]
[381541036,1756273640576,-2923.8766047,0.00021627,2]
[381541037,1756273640605,-558.46456141,0.0002312,3]
[381541038,1756273640835,-3526.93296652,0.00023353,2]
[381541039,1756273640865,-203.6903084,0.00023906,2]
[381541040,1756273640966,-5000.0,0.00024756,3]
[381541041,1756273641168,-373.6073822,0.00024954,2]
[381541042,1756273641197,-300.0,0.00025004,2]
[381541043,1756273641226,-1200.0,0.00025004,2]
[381541044,1756273641371,-2712.50669522,0.00025005,2]
[381541045,1756273641402,-10000.01,0.00025005,2]
[381541046,1756273641495,-10000.01,0.00025005,2]
[381541047,1756273641689,-10000.01,0.00025005,2]
[381541048,1756273641847,-10000.01,0.00025005,2]
[381541049,1756273642003,-2712.55669522,0.00025005,2]
[381541050,1756273642030,-4574.89660956,0.00025005,2]
[381541051,1756273642153,-160.0,0.00023353,2]
[381541052,1756273642183,-500.0,0.00025005,2]
[381541053,1756273642212,-500.0,0.00025005,2]
[381541054,1756273642240,-271.75188092,0.00025005,2]
[381541055,1756273642271,-500.0,0.00025005,2]
[381541056,1756273642300,-178.31216846,0.00025005,2]
[381541057,1756273642332,-500.0,0.00025005,2]
[381541058,1756273642369,-183.88197856,0.00025005,2]
[381541059,1756273642398,-500.0,0.00025005,2]
[381541060,1756273642428,-500.0,0.00025005,2]
[381541061,1756273642459,-500.0,0.00025005,2]
[381541062,1756273642489,-500.0,0.00025005,2]
[381541063,1756273642733,-412.11794412,0.00025005,2]
[381541064,1756273809174,3208.43357281,0.000199,2]
[381541065,1756273810906,-3208.43357252,0.00021627,2]
[381541066,1756273810939,-219.04,0.000221,2]
[381541067,1756273811135,-3208.43357252,0.00023353,2]
[381541068,1756273811165,-255.971837,0.00024005,2]
[381541069,1756273811195,-201.334348,0.00024098,2]
[381541070,1756273811226,-300.0,0.00024754,2]
[381541071,1756273811257,-300.0,0.00024754,2]
[381541072,1756273811288,-300.0,0.00024754,2]
[381541073,1756273811317,-300.0,0.00024754,2]
[381541074,1756273811536,-1200.0,0.00024754,2]
[381541075,1756273811566,-2600.01,0.00024755,2]
[381541076,1756273811672,-2399.99,0.00024755,2]
[381541077,1756273811701,-160.0,0.00024755,2]
[381541078,1756273811733,-500.0,0.00025004,2]
[381541079,1756273811766,-500.0,0.00025004,2]
[381541080,1756273811797,-500.0,0.00025004,2]
[381541081,1756273811829,-500.0,0.00025004,2]
[381541082,1756273811864,-380.03,0.00025004,2]
[381541083,1756273812069,-65.1197674,0.00025004,2]
[381541084,1756273812113,-54.8502326,0.00025004,2]
[381541085,1756273812145,-500.0,0.00025004,2]
[381541086,1756273812176,-500.0,0.00025004,2]
[381541087,1756273812207,-500.0,0.00025004,2]
[381541088,1756273812238,-500.0,0.00025004,2]
[381541089,1756273812268,-500.0,0.00025004,2]
[381541090,1756273812298,-500.0,0.00025004,2]
[381541091,1756273812330,-434.53748863,0.00025004,2]
[381541092,1756273812550,-500.0,0.00025004,2]
[381541093,1756273812581,-500.0,0.00025004,2]
[381541094,1756273812611,-372.29893105,0.00025004,2]
[381541095,1756273812783,-500.0,0.00025004,2]
[381541096,1756273812814,-500.0,0.00025004,2]
[381541097,1756273812846,-500.0,0.00025004,2]
[381541098,1756273812875,-500.0,0.00025004,2]
[381541099,1756273812902,-187.09799762,0.00025004,2]
[381541100,1756273812933,-500.0,0.00025004,2]
[381541101,1756273812966,-500.0,0.00025004,2]
[381541102,1756273812998,-500.0,0.00025004,2]
[381541103,1756273813026,-500.0,0.00025004,2]
[381541104,1756273813056,-500.0,0.00025004,2]
[381541105,1756273813086,-125.81400476,0.00025004,2]
[381541106,1756273813164,-374.18599524,0.00025004,2]
[381541107,1756273813194,-500.0,0.00025004,2]
[381541108,1756273813224,-500.0,0.00025004,2]
[381541109,1756273813251,-500.0,0.00025004,2]
[381541110,1756273813281,-500.0,0.00025004,2]
[381541111,1756273813312,-500.0,0.00025004,2]
[381541112,1756273813345,-468.90473445,0.00025004,2]
[381541113,1756273813376,-500.0,0.00025004,2]
[381541114,1756273813407,-500.0,0.00025004,2]
[381541115,1756273813438,-500.0,0.00025004,2]
[381541116,1756273813552,-500.0,0.00025004,2]
[381541117,1756273813582,-500.0,0.00025004,2]
[381541118,1756273813613,-500.0,0.00025004,2]
[381541119,1756273813643,-500.0,0.00025004,2]
[381541120,1756273813673,-500.0,0.00025004,2]
[381541121,1756273813704,-500.0,0.00025004,2]
[381541122,1756273813735,-500.0,0.00025004,2]
[381541123,1756273813768,-500.0,0.00025004,2]
[381541124,1756273813798,-500.0,0.00025004,2]
[381541125,1756273813829,-500.0,0.00025004,2]
[381541126,1756273813985,-500.0,0.00025004,2]
[381541127,1756273814015,-500.0,0.00025004,2]
[381541128,1756273814046,-500.0,0.00025004,2]
[381541129,1756273814077,-500.0,0.00025004,2]
[381541130,1756273814107,-500.0,0.00025004,2]
[381541131,1756273814137,-500.0,0.00025004,2]
[381541132,1756273814167,-500.0,0.00025004,2]
[381541133,1756273814197,-500.0,0.00025004,2]
[381541134,1756273814228,-500.0,0.00025004,2]
[381541135,1756273814258,-500.0,0.00025004,2]
[381541136,1756273814375,-500.0,0.00025004,2]
[381541137,1756273814407,-500.0,0.00025004,2]
[381541138,1756273814439,-500.0,0.00025004,2]
[381541139,1756273814470,-500.0,0.00025004,2]
[381541140,1756273814504,-500.0,0.00025004,2]
[381541141,1756273814535,-500.0,0.00025004,2]
[381541142,1756273814565,-500.0,0.00025004,2]
[381541143,1756273814597,-500.0,0.00025004,2]
[381541144,1756273814627,-500.0,0.00025004,2]
[381541145,1756273814657,-500.0,0.00025004,2]
[381541146,1756273817068,-151.42800952,0.00025004,2]
[381541147,1756273817087,-348.57199048,0.00025004,2]
[381541148,1756273817097,-151.42800952,0.00025004,2]
[381541149,1756273817112,-348.57199048,0.00025004,2]
[381541150,1756273817122,-151.42800952,0.00025004,2]
[381541151,1756273817137,-348.57199048,0.00025004,2]
[381541152,1756273817146,-151.42800952,0.00025004,2]
[381541153,1756273817163,-348.57199048,0.00025004,2]
[381541154,1756273817172,-151.42800952,0.00025004,2]
[381541155,1756273817192,-348.57199048,0.00025004,2]
[381541156,1756273817202,-151.42800952,0.00025004,2]
[381541157,1756273817226,-348.57199048,0.00025004,2]
[381541158,1756273817235,-151.42800952,0.00025004,2]
[381541159,1756273817250,-348.57199048,0.00025004,2]
[381541160,1756273817259,-151.42800952,0.00025004,2]
[381541161,1756273817278,-0.01,0.00025004,2]
[381541180,1756273832003,-1501.0,0.00024754,3]
[381541215,1756273837849,-3499.0,0.00024754,3]
[381541216,1756273837859,-348.56199048,0.00025004,2]
[381541217,1756273837869,-500.0,0.00025004,2]
[381541218,1756273837878,-500.0,0.00025004,2]
[381541219,1756273837887,-500.0,0.00025004,2]
[381541220,1756273837897,-500.0,0.00025004,2]
[381541221,1756273837906,-500.0,0.00025004,2]
[381541222,1756273837915,-500.0,0.00025004,2]
[381541223,1756273837924,-500.0,0.00025004,2]
[381541224,1756273837933,-500.0,0.00025004,2]
[381541225,1756273837942,-500.0,0.00025004,2]
[381541226,1756273837951,-500.0,0.00025004,2]
[381541227,1756273837960,-500.0,0.00025004,2]
[381541228,1756273837969,-500.0,0.00025004,2]
[381541229,1756273837979,-500.0,0.00025004,2]
[381541230,1756273837988,-500.0,0.00025004,2]
[381541231,1756273837999,-502.53762859,0.00025004,2]
[381541232,1756273838008,-502.53762859,0.00025004,2]
[381541233,1756273838017,-502.53762859,0.00025004,2]
[381541234,1756273838026,-502.53762859,0.00025004,2]
[381541235,1756273838035,-502.53762859,0.00025004,2]
[381541236,1756273838044,-502.53762859,0.00025004,2]
[381541237,1756273838054,-502.53762859,0.00025004,2]
[381541238,1756273838063,-502.53762859,0.00025004,2]
[381541239,1756273838072,-500.0,0.00025004,2]
[381541240,1756273838083,-500.0,0.00025004,2]
[381541241,1756273838093,-500.0,0.00025004,2]
[381541242,1756273838102,-500.0,0.00025004,2]
[381541243,1756273838112,-301.5667264,0.00025004,2]
[381541244,1756273838121,-500.0,0.00025004,2]
[381541245,1756273838130,-500.0,0.00025004,2]
[381541246,1756273838140,-500.0,0.00025004,2]
[381541247,1756273838149,-502.53762859,0.00025004,2]
[381541248,1756273838158,-500.0,0.00025004,2]
[381541249,1756273838168,-500.0,0.00025004,2]
[381541250,1756273838177,-525.76128858,0.00025004,2]
[381541251,1756273838186,-525.76128858,0.00025004,2]
[381541252,1756273838195,-525.76128858,0.00025004,2]
[381541253,1756273838205,-525.76128858,0.00025004,2]
[381541254,1756273838214,-28943.75031253,0.00025004,2]
[381541255,1756273838223,-500.0,0.00025005,2]
[381541256,1756273838233,-12707.75045307,0.00025008,2]
[381541257,1756273838243,-3432.9371167,0.00025016,2]
[381541258,1756273838252,-529.56067766,0.00025031,2]
[381541259,1756273838261,-425.44119842,0.00025031,2]
[381541260,1756273838271,-216.14835892,0.00025031,2]
[381541261,1756273838280,-217.23771399,0.00025031,2]
[381541262,1756273838289,-845.298898,0.00025031,2]
[381541263,1756273838298,-160.0,0.00025031,2]
[381541264,1756273838307,-502.42490781,0.00025073,2]
[381541265,1756273838316,-500.0,0.00025073,2]
[381541266,1756273838325,-501.41813969,0.00025073,2]
[381541267,1756273838335,-500.0,0.00025073,2]
[381541268,1756273838345,-343.42781251,0.00025073,2]
[381541269,1756273838354,-500.0,0.00025073,2]
[381541270,1756273838363,-500.0,0.00025073,2]
[381541271,1756273838372,-161.11718925,0.00025073,2]
[381541272,1756273838382,-500.0,0.00025073,2]
[381541273,1756273838391,-500.0,0.00025073,2]
[381541274,1756273838399,-473.30564536,0.00025073,2]
[381541275,1756273838410,-500.0,0.00025073,2]
[381541276,1756273838419,-579.8504739,0.00025073,2]
[381541277,1756273838428,-500.0,0.00025073,2]
[381541278,1756273838437,-500.0,0.00025073,2]
[381541279,1756273838447,-500.0,0.00025073,2]
[381541280,1756273838456,-500.0,0.00025073,2]
[381541281,1756273838465,-501.80461637,0.00025073,2]
[381541282,1756273838474,-500.0,0.00025073,2]
[381541283,1756273838483,-500.0,0.00025073,2]
[381541284,1756273838492,-780.0,0.00025073,2]
[381541285,1756273838501,-3208.43357252,0.0002508,2]
[381541286,1756273838511,-232.59867797,0.0002509,2]
[381541287,1756273838520,-160.0,0.0002509,2]
[381541288,1756273838529,-160.0,0.0002509,2]
[381541289,1756273838538,-160.0,0.0002509,2]
[381541290,1756273838547,-160.0,0.0002509,2]
[381541291,1756273838556,-500.0,0.0002512,2]
[381541292,1756273838566,-500.0,0.0002512,2]
[381541293,1756273838575,-500.0,0.00025229,2]
[381541294,1756273838584,-500.0,0.00025229,2]
[381541295,1756273838594,-1000.0,0.00025263,2]
[381541296,1756273838603,-1000.0,0.00025263,2]
[381541297,1756273838612,-1000.0,0.00025263,2]
[381541298,1756273838621,-1000.0,0.00025263,2]
[381541299,1756273838631,-1000.0,0.00025263,2]
[381541300,1756273838640,-1000.0,0.00025263,2]
[381541301,1756273838649,-151.0,0.00025263,2]
[381541302,1756273838658,-151.0,0.00025263,2]
[381541303,1756273838667,-151.0,0.00025263,2]
[381541304,1756273838676,-151.0,0.00025263,2]
[381541305,1756273838685,-151.68013633,0.00025263,2]
[381541306,1756273838695,-500.0,0.00025263,2]
[381541307,1756273838704,-189.84344737,0.00025263,2]
[381541308,1756273838713,-500.0,0.00025263,2]
[381541309,1756273838723,-500.0,0.00025263,2]
[381541310,1756273838732,-151.0,0.00025263,2]
[381541311,1756273838741,-151.0,0.00025263,2]
[381541312,1756273838750,-500.0,0.00025263,2]
[381541313,1756273838759,-151.0,0.00025263,2]
[381541314,1756273838768,-151.0,0.00025263,2]
[381541315,1756273838777,-500.0,0.00025263,2]
[381541316,1756273838787,-151.0,0.00025263,2]
[381541317,1756273838796,-151.0,0.00025263,2]
[381541318,1756273838805,-151.0,0.00025263,2]
[381541319,1756273838814,-151.0,0.00025263,2]
[381541320,1756273838823,-151.0,0.00025263,2]
[381541321,1756273838834,-500.0,0.00025279,2]
[381541322,1756273838843,-780.0,0.00025347,2]
[381541323,1756273838852,-708.84128085,0.000255,2]
[381541324,1756273838862,-723.42731565,0.00025502,2]
[381541325,1756273838871,-151.0,0.00025537,2]
[381541326,1756273838880,-151.0,0.00025537,2]
[381541327,1756273838889,-151.0,0.00025537,2]
[381541328,1756273838899,-500.0,0.00025537,2]
[381541329,1756273838908,-500.0,0.00025537,2]
[381541330,1756273838917,-500.0,0.00025537,2]
[381541331,1756273838927,-151.0,0.00025537,2]
[381541332,1756273838936,-151.0,0.00025537,2]
[381541333,1756273838945,-500.81399783,0.00025537,2]
[381541334,1756273838954,-151.0,0.00025537,2]
[381541335,1756273838963,-151.0,0.00025537,2]
[381541336,1756273838973,-500.0,0.00025537,2]
[381541337,1756273838982,-151.0,0.00025537,2]
[381541338,1756273838992,-151.0,0.00025537,2]
[381541339,1756273839001,-151.0,0.00025537,2]
[381541340,1756273839010,-151.0,0.00025537,2]
[381541341,1756273839019,-151.0,0.00025537,2]
[381541342,1756273839028,-500.0,0.00025553,2]
[381541343,1756273839038,-65185.8477704,0.00025611,2]
[381541344,1756273839048,-1905.93148453,0.00025611,2]
[381541345,1756273839057,-502.53922892,0.00025621,2]
[381541346,1756273839066,-1000.0,0.00025621,2]
[381541347,1756273839076,-1000.0,0.00025621,2]
[381541348,1756273839085,-1000.0,0.00025621,2]
[381541349,1756273839095,-1000.0,0.00025621,2]
[381541350,1756273839104,-397.68993549,0.00025621,2]
[381541351,1756273839113,-1000.0,0.00025621,2]
[381541352,1756273839123,-500.0,0.00025621,2]
[381541353,1756273839132,-1000.0,0.00025621,2]
[381541354,1756273839141,-593.28069109,0.00025621,2]
[381541355,1756273839150,-1000.0,0.00025621,2]
[381541356,1756273839159,-501.68822073,0.00025621,2]
[381541357,1756273839168,-1000.0,0.00025621,2]
[381541358,1756273839177,-780.0,0.00025621,2]
[381541359,1756273839186,-507.86890135,0.00025668,2]
[381541360,1756273839195,-504.9481195,0.00025668,2]
[381541361,1756273839204,-501.05662718,0.00025673,2]
[381541362,1756273839213,-500.0,0.00025673,2]
[381541363,1756273839222,-500.57562259,0.00025673,2]
[381541364,1756273839231,-500.0,0.00025673,2]
[381541365,1756273839241,-500.0,0.00025673,2]
[381541366,1756273839250,-500.0,0.00025673,2]
[381541367,1756273839258,-500.0,0.00025673,2]
[381541368,1756273839267,-500.0,0.00025673,2]
[381541369,1756273839277,-500.0,0.00025673,2]
[381541370,1756273839286,-500.0,0.00025673,2]
[381541371,1756273839295,-502.15933556,0.00025777,2]
[381541372,1756273839304,-266.21081083,0.00025811,2]
[381541373,1756273839313,-253.34897568,0.00025811,2]
[381541374,1756273839322,-151.0,0.00025811,2]
[381541375,1756273839331,-547.0,0.00025811,2]
[381541376,1756273839343,-406.0,0.00025811,2]
[381541377,1756273839352,-500.0,0.00025811,2]
[381541378,1756273839361,-151.0,0.00025811,2]
[381541379,1756273839370,-151.0,0.00025811,2]
[381541380,1756273839381,-198.0,0.00025811,2]
[381541381,1756273839390,-151.0,0.00025811,2]
[381541382,1756273839399,-500.0,0.00025811,2]
[381541383,1756273839409,-151.0,0.00025811,2]
[381541384,1756273839418,-151.0,0.00025811,2]
[381541385,1756273839427,-151.0,0.00025811,2]
[381541386,1756273839437,-152.86277154,0.00025811,2]
[381541387,1756273839446,-510.60421212,0.00025827,2]
[381541388,1756273839455,-179.79063461,0.0002587,11]
[381541389,1756273839464,-430.147,0.0002587,11]
[381541390,1756273839474,-780.0,0.00025895,2]
[381541391,1756273839484,-748.28,0.00025951,3]
[381541392,1756273839494,-65185.8477704,0.00025951,2]
[381541393,1756273839503,-1905.93148453,0.00025951,2]
[381541394,1756273839512,-270.0,0.00025956,2]
[381541395,1756273839521,-33782.02608251,0.00025961,2]
[381541396,1756273839530,-500.0,0.00025973,2]
[381541397,1756273839539,-6607.39404664,0.00025973,2]
[381541398,1756273839549,-1018.26,0.00026,7]
[381541400,1756273839558,-1673.71,0.00026031,3]
[381541402,1756273839567,-836.85,0.00026031,3]
[381541404,1756273839577,-418.43,0.00026031,3]
[381541406,1756273839586,-209.21,0.00026031,3]
[381541407,1756273839595,-627.67,0.00026031,3]
[381541408,1756273839604,-259.95,0.00026031,3]
[381541409,1756273839613,-779.85,0.00026031,3]
[381541411,1756273839623,-1013.9910877,0.00026038,2]
[381541412,1756273839634,-151.2106036,0.00026045,2]
[381541413,1756273839643,-179.33548377,0.00026045,2]
[381541414,1756273839653,-195557.543311,0.0002606,2]
[381541415,1756273839663,-15247.4518762,0.0002606,2]
[381541416,1756273839672,-151.0,0.00026061,2]
[381541417,1756273839682,-151.0,0.00026061,2]
[381541418,1756273839691,-151.0,0.00026061,2]
[381541419,1756273839701,-500.0,0.00026061,2]
[381541420,1756273839711,-500.0,0.00026061,2]
[381541421,1756273839722,-151.000002,0.00026061,2]
[381541422,1756273839731,-151.50829414,0.00026061,2]
[381541424,1756273839741,-151.0,0.00026061,2]
[381541425,1756273839750,-151.0,0.00026061,2]
[381541426,1756273839761,-151.18953785,0.00026061,2]
[381541427,1756273839770,-151.0055701,0.00026061,2]
[381541428,1756273839780,-151.0,0.00026061,2]
[381541429,1756273839789,-151.0,0.00026061,2]
[381541431,1756273839798,-202.31733087,0.00026061,2]
[381541432,1756273839807,-151.0,0.00026061,2]
[381541433,1756273839816,-500.0,0.00026061,2]
[381541434,1756273839826,-500.0,0.00026061,2]
[381541435,1756273839836,-151.0,0.00026061,2]
[381541436,1756273839845,-500.0,0.00026061,2]
[381541437,1756273839855,-151.34928729,0.00026061,2]
[381541438,1756273839865,-151.65045741,0.00026061,2]
[381541439,1756273839875,-151.0,0.00026061,2]
[381541440,1756273839885,-157.69187,0.0002607,7]
[381541441,1756273839895,-157.69187,0.0002607,7]
[381541442,1756273839906,-157.69187,0.0002607,7]
[381541443,1756273839915,-151.0,0.0002607,7]
[381541444,1756273839925,-151.0,0.0002607,7]
[381541445,1756273839936,-157.69187,0.0002607,7]
[381541446,1756273839945,-235.914186,0.0002607,7]
[381541447,1756273839955,-151.0,0.0002607,7]
[381541448,1756273839965,-1002.41907,0.0002607,7]
[381541449,1756273839974,-235.914186,0.0002607,7]
[381541450,1756273839986,-1002.41907,0.0002607,7]
[381541451,1756273839995,-235.914186,0.0002607,7]
[381541452,1756273840005,-1002.41907,0.0002607,7]
[381541453,1756273840014,-151.0,0.0002607,7]
[381541454,1756273840023,-235.914186,0.0002607,7]
[381541455,1756273840033,-1002.41907,0.0002607,7]
[381541456,1756273840042,-183.467516,0.0002607,7]
[381541457,1756273840052,-151.0,0.0002607,7]
[381541458,1756273840061,-151.0,0.0002607,7]
[381541459,1756273840070,-151.0,0.0002607,7]
[381541460,1756273840079,-206.302463,0.0002607,7]
[381541461,1756273840089,-151.0,0.0002607,7]
[381541462,1756273840098,-1064.552854,0.0002607,7]
[381541463,1756273840107,-1064.552854,0.0002607,7]
[381541464,1756273840116,-1064.552854,0.0002607,7]
[381541465,1756273840126,-1064.552854,0.0002607,7]
[381541466,1756273840135,-151.0,0.0002607,7]
[381541467,1756273840148,-151.0,0.0002607,7]
[381541468,1756273840158,-151.0,0.0002607,7]
[381541469,1756273840169,-151.0,0.0002607,7]
[381541470,1756273840179,-151.0,0.0002607,7]
[381541471,1756273840188,-151.0,0.0002607,7]
[381541472,1756273840197,-151.0,0.0002607,7]
[381541473,1756273840206,-151.0,0.0002607,7]
[381541474,1756273840215,-370000.0,0.0002607,2]
[381541475,1756273840428,-500.0,0.00026073,2]
[381541476,1756273840449,-500.0,0.00026073,2]
[381541477,1756273840458,-501.48823441,0.00026073,2]
[381541478,1756273840468,-500.51260226,0.00026073,2]
[381541479,1756273840477,-502.21492988,0.00026073,2]
[381541480,1756273840486,-500.0,0.00026073,2]
[381541481,1756273840496,-500.0,0.00026073,2]
[381541482,1756273840505,-163.98468888,0.00026073,2]
[381541483,1756273840514,-500.0,0.00026073,2]
[381541484,1756273840524,-500.0,0.00026073,2]
[381541485,1756273840533,-501.46140598,0.00026073,2]
[381541486,1756273840543,-500.0,0.00026073,2]
[381541487,1756273840552,-500.0,0.00026073,2]
[381541488,1756273840561,-150.0,0.00026073,2]
[381541489,1756273840571,-500.0,0.00026073,2]
[381541490,1756273840580,-500.0,0.00026073,2]
[381541491,1756273840590,-500.0,0.00026073,2]
[381541492,1756273840599,-154.86355859,0.00026073,2]
[381541493,1756273840608,-500.0,0.00026073,2]
[381541494,1756273840617,-500.0,0.00026073,2]
[381541495,1756273840626,-424.02450376,0.00026073,2]
[381541496,1756273840635,-502.59252625,0.00026073,2]
[381541497,1756273840644,-500.0,0.00026073,2]
[381541498,1756273840653,-500.0,0.00026073,2]
[381541499,1756273840662,-500.0,0.00026073,2]
[381541500,1756273840671,-548.04642541,0.00026073,2]
[381541501,1756273840680,-501.97421383,0.00026073,2]
[381541502,1756273840689,-258.92923988,0.00026073,2]
[381541503,1756273840698,-151.0,0.00026085,2]
[381541504,1756273840707,-500.0,0.00026085,2]
[381541505,1756273840716,-151.0,0.00026085,2]
[381541506,1756273840726,-151.0,0.00026085,2]
[381541507,1756273840735,-151.0,0.00026085,2]
[381541509,1756273840745,-500.0,0.00026085,2]
[381541510,1756273840754,-151.0,0.00026085,2]
[381541511,1756273840764,-151.0,0.00026085,2]
[381541512,1756273840774,-151.0,0.00026085,2]
[381541513,1756273840783,-3811.86296906,0.0002609,2]
[381541514,1756273840794,-15072.24,0.000261,2]
[381541515,1756273840803,-4072.09,0.000261,7]
[381541516,1756273840812,-62095.29,0.000261,7]
[381541517,1756273840821,-160.0,0.000261,7]
[381541518,1756273840830,-425.44119842,0.000261,7]
[381541519,1756273840840,-217.23771399,0.000261,7]
[381541520,1756273840849,-232.59867797,0.000261,7]
[381541521,1756273840858,-845.298898,0.000261,7]
[381541522,1756273840867,-1500.0,0.00026168,2]
[381541523,1756273840877,-1500.0,0.00026168,2]
[381541524,1756273840888,-1126.09121599,0.00026168,2]
[381541525,1756273840897,-1000.0,0.00026168,2]
[381541526,1756273840906,-217.31728907,0.00026168,2]
[381541528,1756273840915,-516.37744465,0.00026168,2]
[381541529,1756273840924,-1500.0,0.00026168,2]
[381541530,1756273840933,-1500.0,0.00026168,2]
[381541531,1756273840943,-780.0,0.00026169,2]
[381541532,1756273840952,-502.20687387,0.00026221,2]
[381541533,1756273840961,-500.0,0.00026221,2]
[381541534,1756273840970,-1000.0,0.00026221,2]
[381541535,1756273840979,-184.95486451,0.00026281,5]
[381541536,1756273840989,-151.0,0.00026335,2]
[381541537,1756273840998,-151.0,0.00026335,2]
[381541538,1756273841008,-151.0,0.00026335,2]
[381541539,1756273841017,-500.0,0.00026335,2]
[381541540,1756273841027,-500.0,0.00026335,2]
[381541541,1756273841036,-151.0,0.00026335,2]
[381541542,1756273841045,-151.70332095,0.00026335,2]
[381541543,1756273841055,-198.86680626,0.00026335,2]
[381541544,1756273841064,-155.18906074,0.00026335,2]
[381541545,1756273841074,-500.0,0.00026335,2]
[381541546,1756273841083,-500.0,0.00026335,2]
[381541547,1756273841093,-151.0,0.00026335,2]
[381541548,1756273841102,-500.0,0.00026335,2]
[381541549,1756273841112,-151.0,0.00026335,2]
[381541550,1756273841122,-198.0,0.00026359,2]
[381541551,1756273841131,-500.0,0.00026359,2]
[381541552,1756273841141,-198.00310054,0.00026359,2]
[381541553,1756273841150,-151.0,0.00026359,2]
[381541554,1756273841159,-198.0,0.00026359,2]
[381541555,1756273841169,-151.0,0.00026359,2]
[381541556,1756273841179,-194.58011813,0.00026359,2]
[381541557,1756273841188,-151.0,0.00026359,2]
[381541558,1756273841198,-780.0,0.00026443,2]
[381541559,1756273841208,-1000.0,0.00026521,2]
[381541560,1756273841218,-160.0,0.00026567,2]
[381541561,1756273841228,-6607.39404664,0.0002658,2]
[381541562,1756273841237,-151.0,0.00026609,2]
[381541563,1756273841246,-151.0,0.00026609,2]
[381541564,1756273841256,-151.0,0.00026609,2]
[381541565,1756273841265,-500.0,0.00026609,2]
[381541566,1756273841274,-500.0,0.00026609,2]
[381541567,1756273841283,-500.0,0.00026609,2]
[381541568,1756273841293,-500.0,0.00026609,2]
[381541569,1756273841302,-151.95393366,0.00026609,2]
[381541570,1756273841311,-453.0,0.00026609,2]
[381541571,1756273841321,-151.0,0.00026609,2]